bitfinex/quotes_BTCUSD_20250526
["timestamp","ask_amount","ask_price","bid_price","bid_amount"]
[1748261211226,0.34647393,109690.0,109680.0,1.23356458]
[1748261211403,0.34647393,109690.0,109680.0,1.20346458]
[1748261211602,0.60188185,109690.0,109680.0,0.472757]
[1748261211861,0.60188185,109690.0,109680.0,0.83811079]
[1748261212032,0.60188185,109690.0,109680.0,1.20346458]
[1748261212621,0.60827757,109690.0,109680.0,1.20346458]
[1748261213049,0.90827757,109690.0,109680.0,0.132757]
[1748261213217,0.90827757,109690.0,109680.0,0.49811079]
[1748261214321,0.90827757,109690.0,109680.0,0.86346458]
[1748261214725,0.9083692,109690.0,109680.0,0.49811079]
[1748261215485,0.9083692,109690.0,109680.0,0.86346458]
[1748261216572,0.93920262,109690.0,109680.0,0.86346458]
[1748261217900,0.93920262,109690.0,109680.0,0.49811079]
[1748261218527,0.96655862,109690.0,109680.0,0.49811079]
[1748261218710,0.93920262,109690.0,109680.0,0.49811079]
[1748261219151,0.96655862,109690.0,109680.0,0.55084379]
[1748261219904,0.96655862,109690.0,109680.0,0.36935379]
[1748261220116,1.27155862,109690.0,109680.0,0.004]
[1748261220941,1.28028995,109690.0,109680.0,0.36935379]
[1748261222302,1.28028995,109690.0,109680.0,0.004]
[1748261222966,0.55416591,109680.0,109670.0,0.36535379]
[1748261223194,1.05416955,109680.0,109670.0,0.36535379]
[1748261223439,0.55418336,109670.0,109660.0,0.342]
[1748261223619,0.94232892,109670.0,109660.0,0.84519979]
[1748261223954,0.94872464,109670.0,109660.0,0.84519979]
[1748261225658,0.94872464,109670.0,109660.0,0.84819979]
[1748261225857,1.03283847,109670.0,109660.0,0.86644066]
[1748261226312,1.03283847,109670.0,109660.0,0.86844066]
[1748261227748,1.03283847,109670.0,109660.0,0.86544066]
[1748261228151,0.88806464,109670.0,109660.0,0.89464066]
[1748261228588,0.89006464,109670.0,109660.0,0.89464066]
[1748261228749,0.89006464,109670.0,109660.0,0.86344066]
[1748261229081,0.91450234,109670.0,109660.0,0.86344066]
[1748261229446,0.61450234,109670.0,109660.0,0.86344066]
[1748261229695,0.91450234,109670.0,109660.0,0.86344066]
[1748261230241,0.94740234,109670.0,109660.0,0.86344066]
[1748261230683,0.63040319,109670.0,109660.0,0.86344066]
[1748261230891,0.92904319,109670.0,109660.0,0.86344066]
[1748261231458,0.89820977,109670.0,109660.0,0.86344066]
[1748261232702,0.94820977,109670.0,109660.0,0.86344066]
[1748261233833,1.03640632,109670.0,109660.0,0.86344066]
[1748261234045,1.06870632,109670.0,109660.0,0.86344066]
[1748261236152,0.98050977,109670.0,109660.0,0.86344066]
[1748261236482,0.68186977,109670.0,109660.0,0.86344066]
[1748261236691,0.98050977,109670.0,109660.0,0.86344066]
[1748261237043,0.68186977,109670.0,109660.0,0.86344066]
[1748261237184,0.98050977,109670.0,109660.0,0.86344066]
[1748261238842,1.04501261,109670.0,109660.0,0.86344066]
[1748261239038,1.05139998,109670.0,109660.0,0.86344066]
[1748261239440,1.08319998,109670.0,109660.0,0.86344066]
[1748261240004,1.08319998,109670.0,109660.0,0.84519979]
[1748261241049,0.78319998,109670.0,109660.0,0.84519979]
[1748261247557,0.78319998,109670.0,109660.0,0.50319979]
[1748261250488,0.63739998,109670.0,109660.0,0.50319979]
[1748261250696,0.78319998,109670.0,109660.0,0.50319979]
[1748261250852,0.78319998,109670.0,109660.0,0.27622933]
[1748261251273,0.78319998,109670.0,109660.0,2.28127633]
[1748261251617,0.71869714,109670.0,109660.0,2.22689533]
[1748261252379,0.71869714,109670.0,109660.0,2.12474033]
[1748261252576,1.01869714,109670.0,109660.0,2.12474033]
[1748261252790,1.01869714,109670.0,109660.0,0.74113179]
[1748261254899,1.01869714,109670.0,109660.0,1.08113179]
[1748261255102,1.10821865,109670.0,109660.0,1.08113179]
[1748261255954,1.1169503,109670.0,109660.0,1.08113179]
[1748261266061,1.14781586,109670.0,109660.0,1.08113179]
[1748261267420,1.14781586,109670.0,109660.0,0.74113179]
[1748261267586,1.14781586,109670.0,109660.0,0.95569479]
[1748261267800,1.14781586,109670.0,109660.0,0.70535379]
[1748261268112,1.17517986,109670.0,109660.0,0.70559466]
[1748261270016,1.17517986,109670.0,109660.0,0.70558285]
[1748261270392,1.18017986,109670.0,109660.0,0.70558285]
[1748261273768,1.18017986,109670.0,109660.0,0.68422005]
[1748261275342,1.18017986,109670.0,109660.0,0.36558285]
[1748261277706,0.88153986,109670.0,109660.0,0.36558285]
[1748261277903,1.18005986,109670.0,109660.0,0.36558285]
[1748261278104,1.18005986,109670.0,109660.0,0.14542725]
[1748261281214,1.27105986,109670.0,109660.0,0.14542725]
[1748261283315,0.94073986,109670.0,109660.0,0.14542725]
[1748261283521,1.21097586,109670.0,109660.0,0.14542725]
[1748261284518,1.24197586,109670.0,109660.0,0.14542725]
[1748261287378,0.50605915,109650.0,109640.0,0.41967128]
[1748261287580,0.74144471,109650.0,109640.0,6.20083698]
[1748261287757,0.72690386,109650.0,109640.0,6.20083698]
[1748261287971,0.74144471,109650.0,109640.0,2.15400713]
[1748261288152,0.74144471,109650.0,109640.0,2.15509213]
[1748261288528,0.7415354,109650.0,109640.0,2.15509213]
[1748261288731,0.74792277,109650.0,109640.0,2.15509213]
[1748261288933,0.74792277,109650.0,109640.0,2.15609213]
[1748261289962,0.74792277,109650.0,109640.0,2.52268178]
[1748261290884,0.77942277,109650.0,109640.0,1.4193825]
[1748261291089,0.51132277,109650.0,109640.0,0.36958625]
[1748261291475,0.51132277,109650.0,109640.0,0.48951725]
[1748261291740,0.63358277,109650.0,109640.0,0.8551035]
[1748261291940,0.59968277,109650.0,109640.0,1.27029635]
[1748261294747,0.35208277,109650.0,109640.0,1.27029635]
[1748261295057,0.64968277,109650.0,109640.0,1.27029635]
[1748261296548,0.63514192,109650.0,109640.0,1.6358826]
[1748261297122,0.62875455,109650.0,109640.0,1.6358826]
[1748261297971,0.62875455,109650.0,109640.0,1.27017737]
[1748261301867,0.39336899,109650.0,109640.0,1.27017737]
[1748261302080,0.24160899,109650.0,109640.0,1.27017737]
[1748261302285,0.38744899,109650.0,109640.0,1.27017737]
[1748261302688,0.39656866,109650.0,109640.0,1.27929812]
[1748261302892,0.38744899,109650.0,109640.0,1.47083388]
[1748261303871,0.38744899,109650.0,109640.0,1.46171329]
[1748261304822,0.38744899,109650.0,109640.0,1.47083396]
[1748261307680,0.37832923,109650.0,109640.0,1.47083396]
[1748261311540,0.37832923,109650.0,109640.0,1.46171329]
[1748261312461,0.23248923,109650.0,109640.0,1.46171329]
[1748261312598,0.37828923,109650.0,109640.0,1.47995455]
[1748261313282,0.01823918,109650.0,109640.0,1.61497389]
[1748261313497,0.3281819,109660.0,109650.0,0.0625]
[1748261313711,0.3281819,109660.0,109650.0,5.84355352]
[1748261315428,0.1823819,109660.0,109650.0,5.84355352]
[1748261315599,0.3281819,109660.0,109650.0,5.84355352]
[1748261317641,0.3281819,109660.0,109650.0,6.18355352]
[1748261318021,0.1823819,109660.0,109650.0,6.54865425]
[1748261318223,0.3281819,109660.0,109650.0,6.54865425]
[1748261320272,0.18236527,109670.0,109660.0,0.3723]
[1748261320479,0.32816527,109670.0,109660.0,6.74035524]
[1748261320688,0.32816527,109670.0,109660.0,6.54885425]
[1748261322055,0.33016527,109670.0,109660.0,6.54885425]
[1748261322478,0.33016527,109670.0,109660.0,6.51845425]
[1748261326314,0.33016527,109670.0,109660.0,6.48615425]
[1748261328282,0.36286527,109670.0,109660.0,6.48615425]
[1748261331600,0.33016527,109670.0,109660.0,6.48615425]
[1748261332498,0.33016527,109670.0,109660.0,6.51925425]
[1748261332700,0.34216527,109670.0,109660.0,6.52125425]
[1748261335992,0.34216527,109670.0,109660.0,6.48815425]
[1748261336197,0.37346527,109670.0,109660.0,6.48815425]
[1748261339319,0.37346527,109670.0,109660.0,6.67053615]
[1748261339564,0.37346527,109670.0,109660.0,7.81802841]
[1748261339565,0.19636527,109670.0,109660.0,7.81802841]
[1748261339768,0.34216527,109670.0,109660.0,7.81802841]
[1748261340186,0.34216527,109670.0,109660.0,6.72187416]
[1748261340542,0.34216527,109670.0,109660.0,6.71275524]
[1748261341134,0.34216527,109670.0,109660.0,6.48815425]
[1748261341333,0.37466527,109670.0,109660.0,6.48815425]
[1748261344087,0.54711083,109670.0,109660.0,1.6929185]
[1748261344721,0.54711083,109670.0,109660.0,2.05830325]
[1748261345924,0.54711083,109670.0,109660.0,0.962149]
[1748261346129,0.54711083,109670.0,109660.0,1.32758908]
[1748261346785,0.54711083,109670.0,109660.0,0.98758908]
[1748261348913,0.54711083,109670.0,109660.0,1.32758908]
[1748261349503,0.54720162,109670.0,109660.0,1.32758908]
[1748261350547,0.54720162,109670.0,109660.0,1.69302916]
[1748261350548,0.36850162,109670.0,109660.0,1.69302916]
[1748261350781,0.42475606,109670.0,109660.0,1.69302916]
[1748261351003,0.42475606,109670.0,109660.0,1.32758908]
[1748261353137,0.45565606,109670.0,109660.0,1.32758908]
[1748261354663,0.45565606,109670.0,109660.0,1.69302916]
[1748261356520,0.42475606,109670.0,109660.0,1.69302916]
[1748261357422,0.27895606,109670.0,109660.0,1.69302916]
[1748261357622,0.42475606,109670.0,109660.0,1.69302916]
[1748261358426,0.42475606,109670.0,109660.0,1.71648508]
[1748261358756,0.42475606,109670.0,109660.0,1.69302916]
[1748261361635,0.27895606,109670.0,109660.0,1.69302916]
[1748261361842,0.42475606,109670.0,109660.0,1.69302916]
[1748261362203,0.45595606,109670.0,109660.0,1.69302916]
[1748261367937,0.45595606,109670.0,109660.0,2.05838938]
[1748261377560,0.42475606,109670.0,109660.0,2.05838938]
[1748261378633,0.45545606,109670.0,109660.0,2.05838938]
[1748261391096,0.37475606,109670.0,109660.0,2.05838938]
[1748261391306,0.19645606,109670.0,109660.0,2.24077128]
[1748261391600,0.24500929,109680.0,109670.0,0.34]
[1748261391796,0.48035485,109680.0,109670.0,6.48624038]
[1748261392028,0.48676045,109680.0,109670.0,6.48624038]
[1748261392632,0.34096045,109680.0,109670.0,6.48624038]
[1748261392834,0.48035485,109680.0,109670.0,6.48624038]
[1748261393039,0.49235485,109680.0,109670.0,6.48824038]
[1748261393200,0.49535485,109680.0,109670.0,6.48824038]
[1748261394047,0.49535485,109680.0,109670.0,6.12282692]
[1748261396466,0.46309421,109680.0,109670.0,6.12282692]
[1748261396722,0.49589421,109680.0,109670.0,6.12282692]
[1748261396925,0.49589421,109680.0,109670.0,4.10034792]
[1748261405236,0.49589421,109680.0,109670.0,3.76034792]
[1748261405871,0.49089421,109680.0,109670.0,3.76034792]
[1748261407084,0.49089421,109680.0,109670.0,4.10034792]
[1748261415240,0.45809421,109680.0,109670.0,4.10034792]
[1748261419394,0.48919421,109680.0,109670.0,4.10034792]
[1748261419962,0.34339421,109680.0,109670.0,4.10034792]
[1748261420199,0.45809421,109680.0,109670.0,4.10034792]
[1748261420808,0.33814865,109680.0,109670.0,4.64812665]
[1748261421150,0.33814865,109680.0,109670.0,4.46576138]
[1748261421629,0.36854865,109680.0,109670.0,4.46576138]
[1748261421861,0.36854865,109680.0,109670.0,4.10034792]
[1748261423603,0.22274865,109680.0,109670.0,4.10034792]
[1748261423747,0.33814865,109680.0,109670.0,4.10034792]
[1748261424921,0.37004865,109680.0,109670.0,4.10034792]
[1748261425416,0.37004865,109680.0,109670.0,4.46576138]
[1748261428898,0.37004865,109680.0,109670.0,4.10034792]
[1748261429491,0.40304865,109680.0,109670.0,4.10034792]
[1748261433996,0.45304865,109680.0,109670.0,4.10034792]
[1748261439385,0.30724865,109680.0,109670.0,4.10034792]
[1748261439588,0.27424865,109680.0,109670.0,4.46576138]
[1748261439807,0.06505227,109690.0,109680.0,0.34911734]
[1748261440040,0.22137534,109700.0,109690.0,0.53144845]
[1748261440041,0.06679171,109700.0,109690.0,0.53144845]
[1748261440231,0.17277511,109700.0,109690.0,5.63258064]
[1748261440410,0.19100614,109700.0,109690.0,5.63258064]
[1748261441049,0.191377,109700.0,109690.0,5.63258064]
[1748261441254,0.36901337,109710.0,109700.0,0.53143108]
[1748261441255,0.39628303,109710.0,109700.0,0.53143108]
[1748261441373,0.50921926,109710.0,109700.0,6.67767146]
[1748261441579,0.02036502,109710.0,109700.0,6.68678689]
[1748261441778,0.17523979,109710.0,109700.0,7.82504245]
[1748261442187,0.16612502,109710.0,109700.0,7.82504245]
[1748261442405,0.36665342,109710.0,109700.0,7.82504245]
[1748261442640,0.36665342,109710.0,109700.0,7.82504262]
[1748261442840,0.35753915,109710.0,109700.0,6.71968689]
[1748261443278,0.35753915,109710.0,109700.0,6.72068689]
[1748261443636,0.21177915,109710.0,109700.0,6.72068689]
[1748261444039,0.36110719,109720.0,109710.0,0.53141355]
[1748261444243,0.36110719,109720.0,109710.0,6.67659643]
[1748261444244,0.34626996,109720.0,109710.0,6.67659643]
[1748261444485,0.34626996,109720.0,109710.0,6.68571112]
[1748261444678,0.34626996,109720.0,109710.0,6.67659643]
[1748261444870,0.34626996,109720.0,109710.0,6.31153547]
[1748261445884,0.34826996,109720.0,109710.0,6.31153547]
[1748261446784,0.34826996,109720.0,109710.0,6.32065016]
[1748261447200,0.20250996,109720.0,109710.0,6.31153547]
[1748261447403,0.34826996,109720.0,109710.0,6.12012192]
[1748261447607,0.34826996,109720.0,109710.0,6.3024207]
[1748261448023,0.34826996,109720.0,109710.0,6.31153563]
[1748261449026,0.38136996,109720.0,109710.0,6.31153563]
[1748261449595,0.38136996,109720.0,109710.0,6.12012192]
[1748261450280,0.37936996,109720.0,109710.0,6.12012192]
[1748261453310,0.37936996,109720.0,109710.0,5.95498086]
[1748261453575,0.37936996,109720.0,109710.0,6.32004182]
[1748261453750,0.23360996,109720.0,109710.0,6.32004182]
[1748261457377,0.20050996,109720.0,109710.0,6.51145553]
[1748261457591,0.19139619,109720.0,109710.0,6.51145553]
[1748261457784,0.18228217,109720.0,109710.0,6.51145553]
[1748261458636,0.18228217,109720.0,109710.0,6.32004182]
[1748261458814,0.21468217,109720.0,109710.0,6.32004182]
[1748261459171,0.21468217,109720.0,109710.0,6.5023406]
[1748261459567,0.21468217,109720.0,109710.0,6.32004182]
[1748261460444,0.21468217,109720.0,109710.0,6.5023406]
[1748261460710,0.21468217,109720.0,109710.0,6.32004182]
[1748261462239,0.24588217,109720.0,109710.0,6.32004182]
[1748261463932,0.24588217,109720.0,109710.0,6.32000375]
[1748261465086,0.24588217,109720.0,109700.0,1.49725826]
[1748261465087,0.19141355,109710.0,109700.0,0.37887994]
[1748261465307,0.34245911,109710.0,109700.0,0.13222]
[1748261465468,0.95427996,109710.0,109700.0,0.84427454]
[1748261465646,1.25427996,109710.0,109700.0,1.18427454]
[1748261466056,0.95427996,109710.0,109700.0,0.84427454]
[1748261466263,1.04380147,109710.0,109700.0,0.84427454]
[1748261466464,1.04380147,109710.0,109700.0,1.18427454]
[1748261466671,1.04380147,109710.0,109700.0,1.18527454]
[1748261467119,1.05018283,109710.0,109700.0,1.18527454]
[1748261468062,1.05018283,109710.0,109700.0,0.82046983]
[1748261474655,0.90446283,109710.0,109700.0,0.82046983]
[1748261474994,1.05022283,109710.0,109700.0,0.82046983]
[1748261476148,1.35022283,109710.0,109700.0,1.18576166]
[1748261477120,1.11494132,109710.0,109700.0,1.18576166]
[1748261477444,0.43310047,109710.0,109700.0,1.18576166]
[1748261477562,0.42671911,109710.0,109700.0,1.18576166]
[1748261478395,0.42671911,109710.0,109700.0,0.99185321]
[1748261478630,0.42671911,109710.0,109700.0,5.92767521]
[1748261479197,0.42671911,109710.0,109700.0,5.94162476]
[1748261482697,0.45911911,109710.0,109700.0,5.94162476]
[1748261486908,0.31335911,109710.0,109700.0,5.94162476]
[1748261487111,0.45911911,109710.0,109700.0,5.94162476]
[1748261491393,0.31335911,109710.0,109700.0,5.94162476]
[1748261491697,0.45911911,109710.0,109700.0,5.94162476]
[1748261496520,0.23292824,109710.0,109700.0,6.14217127]
[1748261496744,0.34628824,109710.0,109700.0,6.16415584]
[1748261497125,0.33717355,109710.0,109700.0,6.16415584]
[1748261497336,0.00911477,109710.0,109700.0,6.16415584]
[1748261497558,0.19139627,109720.0,109710.0,0.21339878]
[1748261497790,0.0334,109730.0,109720.0,0.53139619]
[1748261498019,0.00911178,109740.0,109730.0,0.21871691]
[1748261498240,0.26692848,109750.0,109740.0,0.58959772]
[1748261498241,0.05462311,109750.0,109740.0,0.58959772]
[1748261498458,0.02364288,109760.0,109750.0,0.54956618]
[1748261498739,0.42243003,109770.0,109760.0,0.54043705]
[1748261498976,0.42243003,109770.0,109760.0,6.20684288]
[1748261498977,0.27716815,109770.0,109760.0,6.20684288]
[1748261499196,0.27716815,109770.0,109760.0,6.00640566]
[1748261499419,0.42292815,109770.0,109760.0,6.20684255]
[1748261499622,0.42292815,109770.0,109760.0,6.21595292]
[1748261499774,0.45025743,109770.0,109760.0,6.21595292]
[1748261500016,0.45025743,109770.0,109760.0,6.22016439]
[1748261500215,0.45025743,109770.0,109760.0,6.21105394]
[1748261500426,0.29738789,109770.0,109760.0,6.21105394]
[1748261500642,0.29538789,109770.0,109760.0,6.21105394]
[1748261500839,0.29538789,109770.0,109760.0,6.23208408]
[1748261501186,0.30138789,109770.0,109760.0,6.23208408]
[1748261501431,0.2922781,109770.0,109760.0,6.22297346]
[1748261501633,0.2922781,109770.0,109760.0,6.21386276]
[1748261501883,0.2862781,109770.0,109760.0,6.22297354]
[1748261502081,0.2922781,109770.0,109760.0,6.22297354]
[1748261502289,0.19991815,109770.0,109760.0,6.22297354]
[1748261502886,0.19991815,109770.0,109760.0,6.23208416]
[1748261504455,0.01760757,109770.0,109760.0,6.25030481]
[1748261504664,0.04493627,109770.0,109760.0,6.28030481]
[1748261505580,0.23124536,109770.0,109760.0,6.28030481]
[1748261505755,0.23024536,109770.0,109760.0,6.28030481]
[1748261505984,0.04193627,109770.0,109760.0,6.28130481]
[1748261506261,0.04193619,109770.0,109760.0,6.28130481]
[1748261506523,0.0328264,109770.0,109760.0,6.30940481]
[1748261507126,0.04193619,109770.0,109760.0,6.30940481]
[1748261507333,0.2332452,109770.0,109760.0,6.30029461]
[1748261507532,0.22413599,109770.0,109760.0,6.30029461]
[1748261507866,0.22413599,109770.0,109760.0,6.30940498]
[1748261508693,0.22413599,109770.0,109760.0,6.28130498]
[1748261509462,0.22413599,109770.0,109760.0,6.06264702]
[1748261509587,0.21502654,109770.0,109760.0,6.06264702]
[1748261509783,0.20591692,109770.0,109760.0,6.06264702]
[1748261510028,0.20591692,109770.0,109760.0,6.0507275]
[1748261512682,0.20591692,109770.0,109760.0,6.0207275]
[1748261512928,0.23641692,109770.0,109760.0,3.68183767]
[1748261513130,0.26711692,109770.0,109760.0,3.68183767]
[1748261513336,0.23661692,109770.0,109760.0,4.0471295]
[1748261514304,0.23661692,109770.0,109760.0,3.68183767]
[1748261514599,0.26561692,109770.0,109760.0,3.68183767]
[1748261514804,0.70516248,109770.0,109760.0,3.31654584]
[1748261515127,0.85084248,109770.0,109760.0,2.80349483]
[1748261515327,1.16538333,109770.0,109760.0,2.37008983]
[1748261516097,1.16538333,109770.0,109760.0,2.004798]
[1748261516412,1.16538333,109770.0,109760.0,2.37008983]
[1748261519246,1.16538333,109770.0,109760.0,2.34874924]
[1748261519994,1.01970333,109770.0,109760.0,2.34874924]
[1748261521883,0.50922484,109770.0,109760.0,0.320815]
[1748261522093,0.50922484,109770.0,109760.0,0.633582]
[1748261522303,0.51422484,109770.0,109760.0,0.001]
[1748261522505,0.51422484,109770.0,109760.0,0.341]
[1748261523351,0.51422484,109770.0,109760.0,0.70629183]
[1748261523578,0.42470333,109770.0,109760.0,0.70629183]
[1748261526324,0.4310587,109770.0,109760.0,0.70629183]
[1748261526479,0.43953668,109770.0,109760.0,0.70629183]
[1748261529700,0.43953668,109770.0,109760.0,0.341]
[1748261529902,0.43953668,109770.0,109760.0,0.70629183]
[1748261530079,0.52905819,109770.0,109760.0,0.70629183]
[1748261532028,0.52905819,109770.0,109760.0,0.36529183]
[1748261536727,0.43953668,109770.0,109760.0,0.36529183]
[1748261547224,0.21499584,109750.0,109740.0,0.70529183]
[1748261547424,0.3606414,109750.0,109740.0,1.54299466]
[1748261547628,0.3045414,109750.0,109740.0,1.54299466]
[1748261548562,0.31306403,109750.0,109740.0,1.54299466]
[1748261549721,0.31306403,109750.0,109740.0,1.54599466]
[1748261550018,0.31945791,109750.0,109740.0,1.54599466]
[1748261551066,0.46567942,109750.0,109740.0,1.54599466]
[1748261552746,0.40897942,109750.0,109740.0,1.54599466]
[1748261553725,0.46527942,109750.0,109740.0,1.54599466]
[1748261553930,0.46527942,109750.0,109740.0,1.42492566]
[1748261555094,0.46627942,109750.0,109740.0,1.42492566]
[1748261555830,0.46627942,109750.0,109740.0,1.42192566]
[1748261556145,0.46627942,109750.0,109740.0,1.42392566]
[1748261562054,0.37675791,109750.0,109740.0,1.42392566]
[1748261562260,0.62045791,109750.0,109740.0,1.45232566]
[1748261562465,0.62045791,109750.0,109740.0,1.47952566]
[1748261563816,0.62045791,109750.0,109740.0,1.42392566]
[1748261564166,0.67655791,109750.0,109740.0,1.42392566]
[1748261564396,0.74843365,109750.0,109740.0,1.42392566]
[1748261564626,0.74843365,109750.0,109740.0,1.08392566]
[1748261565439,0.67655791,109750.0,109740.0,1.08392566]
[1748261566639,0.67655791,109750.0,109740.0,1.42392566]
[1748261568312,0.37655791,109750.0,109740.0,0.002]
[1748261568520,0.36803528,109750.0,109740.0,0.002]
[1748261568722,0.36803528,109750.0,109740.0,0.36729183]
[1748261568920,0.4235619,109750.0,109740.0,0.36729183]
[1748261569745,0.4235619,109750.0,109740.0,0.002]
[1748261571246,0.84786123,109740.0,109730.0,0.22406261]
[1748261571546,0.93740679,109740.0,109730.0,0.38630761]
[1748261571882,0.94380067,109740.0,109730.0,0.38630761]
[1748261572092,1.01318636,109740.0,109730.0,0.38630761]
[1748261572538,1.01318636,109740.0,109730.0,0.33752761]
[1748261572742,1.10418636,109740.0,109730.0,0.004]
[1748261573146,1.10418636,109740.0,109730.0,0.164998]
[1748261573323,1.10418636,109740.0,109730.0,0.52928983]
[1748261573529,1.10418636,109740.0,109730.0,0.52628983]
[1748261573765,1.10418636,109740.0,109730.0,0.52828983]
[1748261574553,1.10418636,109740.0,109730.0,0.52628983]
[1748261574770,0.20591952,109730.0,109720.0,0.71907591]
[1748261574978,0.42096444,109730.0,109720.0,1.74594691]
[1748261576078,0.42096444,109730.0,109720.0,0.86559991]
[1748261576806,0.47096444,109730.0,109720.0,0.86559991]
[1748261576972,0.47296444,109730.0,109720.0,0.86559991]
[1748261578205,0.40286508,109730.0,109720.0,0.86559991]
[1748261583041,0.43365069,109730.0,109720.0,0.86559991]
[1748261585982,0.40286508,109730.0,109720.0,0.86559991]
[1748261591465,0.40286508,109730.0,109720.0,0.002]
[1748261591466,0.77955079,109730.0,109720.0,0.002]
[1748261592076,0.41425896,109730.0,109720.0,0.002]
[1748261592283,0.50178047,109730.0,109720.0,0.002]
[1748261592700,0.50578047,109730.0,109720.0,0.002]
[1748261594409,0.50578047,109730.0,109720.0,0.36729183]
[1748261594410,0.50725896,109730.0,109720.0,0.36729183]
[1748261595850,0.5380282,109730.0,109720.0,0.36729183]
[1748261596629,0.5380282,109730.0,109720.0,0.36416381]
[1748261597710,0.80593696,109720.0,109710.0,0.3766423]
[1748261597913,0.89548252,109720.0,109710.0,2.08209083]
[1748261598049,0.89548252,109720.0,109710.0,2.11069083]
[1748261598251,0.9018764,109720.0,109710.0,2.11069083]
[1748261598937,0.9018764,109720.0,109710.0,1.95069083]
[1748261599131,0.9018764,109720.0,109710.0,1.82209083]
[1748261599336,0.9018764,109720.0,109710.0,1.59259083]
[1748261599490,0.9028764,109720.0,109710.0,1.60397721]
[1748261599688,0.88833555,109720.0,109710.0,2.02376904]
[1748261599934,0.58833555,109720.0,109710.0,2.01238266]
[1748261601123,0.58833555,109720.0,109710.0,2.35238266]
[1748261602046,0.58194167,109720.0,109710.0,2.35238266]
[1748261603251,0.58194167,109720.0,109710.0,2.1901969]
[1748261614763,0.58194167,109720.0,109710.0,2.1627969]
[1748261617058,0.28194167,109720.0,109710.0,2.1627969]
[1748261617275,0.28194167,109720.0,109710.0,2.1899969]
[1748261620058,0.19239611,109720.0,109710.0,2.1899969]
[1748261620269,0.19239611,109720.0,109710.0,2.1900879]
[1748261626357,0.19239611,109720.0,109710.0,2.1899969]
[1748261629413,0.19239611,109720.0,109710.0,2.1627969]
[1748261630389,0.1987961,109720.0,109710.0,2.1627969]
[1748261631419,0.28834166,109720.0,109710.0,1.567299]
[1748261631630,0.73025614,109720.0,109710.0,0.461812]
[1748261631828,0.73025614,109720.0,109710.0,0.482944]
[1748261632038,0.73025614,109720.0,109710.0,0.84823064]
[1748261632511,0.73025614,109720.0,109710.0,0.72641864]
[1748261632734,0.73025614,109720.0,109710.0,0.80643464]
[1748261633158,0.79331943,109720.0,109710.0,0.80643464]
[1748261633375,0.79331943,109720.0,109710.0,0.441148]
[1748261633587,0.79331943,109720.0,109710.0,0.47143464]
[1748261633816,0.79331943,109720.0,109710.0,0.36528664]
[1748261634032,0.5605544,109710.0,109700.0,0.70728889]
[1748261634254,0.7020688,109710.0,109700.0,0.70728889]
[1748261634476,0.7020688,109710.0,109700.0,0.541052]
[1748261634655,0.70846879,109710.0,109700.0,0.541052]
[1748261634938,0.70846879,109710.0,109700.0,0.90634089]
[1748261635385,0.70846879,109710.0,109700.0,0.002]
[1748261635903,0.70846879,109710.0,109700.0,0.003]
[1748261636134,0.77153208,109710.0,109700.0,0.003]
[1748261637882,0.86253208,109710.0,109700.0,0.003]
[1748261639003,0.86353208,109710.0,109700.0,0.003]
[1748261639232,0.86353208,109710.0,109700.0,0.002]
[1748261639461,1.52882097,109710.0,109700.0,0.002]
[1748261639698,1.53882097,109710.0,109700.0,0.002]
[1748261640194,1.50659462,109710.0,109700.0,0.002]
[1748261640890,0.21510548,109690.0,109680.0,0.002]
[1748261641115,0.39719463,109690.0,109680.0,0.00213623]
[1748261641335,0.39719463,109690.0,109680.0,0.18432323]
[1748261641568,0.39719463,109690.0,109680.0,0.00213623]
[1748261642269,0.39719463,109690.0,109680.0,0.00413623]
[1748261642937,0.39719463,109690.0,109680.0,0.00713623]
[1748261643351,0.39719463,109690.0,109680.0,0.10927423]
[1748261643765,0.39719463,109690.0,109680.0,0.00713623]
[1748261644191,0.39719463,109690.0,109680.0,0.00413623]
[1748261644400,0.39719463,109690.0,109680.0,0.00313623]
[1748261644599,0.39719463,109690.0,109680.0,0.21490323]
[1748261644803,0.39719463,109690.0,109680.0,0.12980323]
[1748261645021,0.39719463,109690.0,109680.0,0.49509212]
[1748261645633,0.39719463,109690.0,109680.0,0.36842512]
[1748261646706,0.39719463,109690.0,109680.0,0.55309212]
[1748261646924,0.39719463,109690.0,109680.0,0.46999212]
[1748261647554,0.39719463,109690.0,109680.0,0.36842512]
[1748261652545,0.39719463,109690.0,109680.0,0.15019543]
[1748261653427,0.39719463,109690.0,109680.0,0.26759443]
[1748261654622,0.48819463,109690.0,109680.0,0.26759443]
[1748261656674,0.48819463,109690.0,109680.0,0.15019543]
[1748261656885,0.19148336,109670.0,109660.0,0.35860037]
[1748261657108,0.28102892,109670.0,109660.0,5.65971126]
[1748261658034,0.28102892,109670.0,109660.0,5.66271126]
[1748261658278,0.28102892,109670.0,109660.0,4.88817826]
[1748261658279,0.29556977,109670.0,109660.0,4.88817826]
[1748261658510,0.29556977,109670.0,109660.0,4.69561703]
[1748261658729,0.38509128,109670.0,109660.0,4.43797603]
[1748261658948,0.38509128,109670.0,109660.0,2.13964303]
[1748261658949,0.34536977,109670.0,109660.0,2.13964303]
[1748261659150,0.34536977,109670.0,109660.0,2.14364303]
[1748261659358,0.29556977,109670.0,109660.0,2.14364303]
[1748261661019,0.34576977,109670.0,109660.0,2.14364303]
[1748261661223,0.43529128,109670.0,109660.0,1.08209603]
[1748261661885,0.43529128,109670.0,109660.0,0.90756703]
[1748261662528,0.43529128,109670.0,109660.0,0.90356703]
[1748261662735,0.43529128,109670.0,109660.0,0.90456703]
[1748261662922,0.43529128,109670.0,109660.0,0.90156703]
[1748261663276,0.43529128,109670.0,109660.0,0.53627814]
[1748261663477,0.43529128,109670.0,109660.0,0.90156703]
[1748261663931,0.43529128,109670.0,109660.0,0.184269]
[1748261664348,0.44167883,109670.0,109660.0,0.54955789]
[1748261665196,0.74167883,109670.0,109660.0,0.54955789]
[1748261665448,0.62665732,109670.0,109660.0,0.54955789]
[1748261665636,0.60195732,109670.0,109660.0,0.54955789]
[1748261667613,0.60195732,109670.0,109660.0,0.58574702]
[1748261668591,0.88741647,109670.0,109660.0,0.95144702]
[1748261668794,0.88741647,109670.0,109660.0,0.97824702]
[1748261668795,0.28741647,109670.0,109660.0,0.97824702]
[1748261669933,0.28102892,109670.0,109660.0,0.97824702]
[1748261670623,0.23000831,109680.0,109670.0,0.3925]
[1748261670881,0.31955387,109680.0,109670.0,6.25950149]
[1748261671090,0.31043661,109680.0,109670.0,6.05889978]
[1748261671294,0.30404906,109680.0,109670.0,6.05889978]
[1748261672747,0.30504906,109680.0,109670.0,6.05889978]
[1748261672955,0.30604906,109680.0,109670.0,6.05889978]
[1748261673292,0.30604906,109680.0,109670.0,6.05989978]
[1748261673518,0.30504906,109680.0,109670.0,6.05989978]
[1748261674560,0.27289421,109680.0,109670.0,6.05989978]
[1748261674779,0.20158267,109680.0,109670.0,6.26961884]
[1748261674997,0.02835103,109680.0,109670.0,6.26961884]
[1748261675211,0.03746846,109680.0,109670.0,6.269619]
[1748261675412,0.21981711,109680.0,109670.0,6.269619]